Workbook

Sheet CAVOM DEFINITIF V1
A1: Partie de dnnées identiques pour tous les cotisants à la CNAVPL | X1: Données spécifiques par métier
AF2: Plafond SS | AG2: =O18 -> 41136 | AH2: TAUX COTISATION | AI2: revenu | AJ2: COTISATION | AK2: =IF(AND(AI3>AH6,AI3<=AG4),AI3*AH3,IF(AI3>AG4,AG4*AH3,IF(AI3<AH6,AI6," "))) -> 9000 | BQ2: =AJ67 -> 0
B3: Revenu | C3: COTISATION MAXI 1PASS | D3: =B6*B8 -> 10411.5216 | E3: COTISATIONS Plafonnées MAXI créatrice de froits | F3: =D3+D4 -> 18745.6752 | X3: C.A.V.O.M | Y3: Officier ministériel | AA3: PLAFOND | AB3: COTISATION MAXI 1 PASS | AF3: Nbre Plafond complémentaire | AG3: 8 | AH3: 0.125 | AI3: =+V10 -> 72000 | AJ3: Nombre de points ACQUIS | AK3: =IF(AND(AI3>AH6,AI3<=AG4),(AK2/AI4),IF(AI3>AG4,AK6,IF(AI3<AH6,AG6," "))) -> 192.5957629 | BP3: Pour réaliser une simulation de vos droits et évaluer l'impact de la réforme en cours, tendant à créer un Régime Universel et à supprimer les regimes existants, renseignez dans les case bleues, ci-dessous, les 2 données indispensables à une simulation. Tous droits réservés à la Chambre Nationale de Professions Libérales
B4: =+V10 -> 72000 | C4: COTISATION MAXI 3PASS | D4: =(C6-B6)*C8 -> 8334.1536 | E4: BASE DE COTISATION ENTRE 1 et 3 plafonds | F4: =C6-B6 -> 82272 | AF4: Plafond complémentaire | AG4: =AG2*AG3 -> 329088 | AH4: val achat du point | AI4: 46.73 | AJ4: Valeur de service du point | AK4: 2.86
B5: 1 PLAFOND | C5: 3 PLAFONDS | AF5: Calcul plancher cotis 19% PLF | AG5: 0.19 | AH5: PLANCHER COTISATION | AI5: COTISATION MINI | AJ5: COTISATION MAXI | AK5: =+AG4*AH3 -> 41136
B6: =+O18 -> 41136 | C6: =+V18 -> 123408 | E6: COTISATIONS Plafonnées MAXI créatrice de droits | F6: =SUM(C4:D4) -> 8334.1536 | M6: 1 | N6: Les réformes successives ont allongé les durées légales de cotisation. Celles-ci sont calculées en fonction de l'âge du cotisant faisant liquider sa retraite. Elle induit la Durée de carrière dans tous les régimes,exprimée en trimestres, exigée pour obtenir le taux plein.Pour personnaliser le calcul validez votre date de naissance au moyen de la liste déroulante ci-contre. Il sera alors indiqué, la durée de cotisation dans tous les régimes exprimée en trimestres et en années. | Q6: Renseignez au moyen des flmèches ci-contre, votre année de naissance, afin de connaitre le nombre nécessaire de trimestres d'affiliation pour une retraite à taux plein (par défaut 168 trimestres). | AF6: POINTS MINI | AG6: =AI6/AI4 -> 20.90691205 | AH6: =AG2*AG5 -> 7815.84 | AI6: =+AH6*AH3 -> 976.98 | AJ6: points maxi | AK6: =+AK5/AI4 -> 880.2910336 | BO6: (*) ( Le système universel tend à supprimer les régimes complémtentaires (Agirc-ARCO pour les salariés, caisses complémentaires des Professions Libérales…) Ainsi la comparaison entre les situations actuelles et les situations envisagées par la réforme doivent nécessairement prendre en compte les régimes actuels de base et complémentaire.
B7: Taux de cotisation entre 1 & 3 Plafond | C7: Taux de cotisation 1er Plafond | D7: Taux de cotisation déplafonné NON CREATRICE DE DROITS | F7: TAUX DE COTISATION REEL | Q7: =B32 -> Année de naissance : 1964 - 1965 ou 1966 | BO7: (**) Le projet de régime universel prévoit une pension minimum pour les carrières complètes de 85% du SMIC, ainsi toutes les pension inférieures à ce montant sernt réajustées automtiquement à la condition que la carrière ait été complète.
B8: 0.2531 | C8: 0.1013 | D8: 0.0281 | F8: =+F10/B4 -> 0.2161284 | Q8: Durée de cotisations tous régimes éxigée :
B9: COTISATION 1er plafond | C9: COTISATION 2eME plafond | D9: COTISATION Non créatrice DE DROITS | E9: cotisation créatrice de droits | F9: cotis totale | Q9: =D26 -> 169 TRIMESTRES soit : 42 ans et un trimestre | X9: Renseignez la case "revenus" qui permettra, à revenu égal, de compararer les cotisations et prestations à la | Y9: et au Régime Universel tel que proposé
B10: =IF(B$4<=B$6,(B$4*B$8),IF(AND(B$4>B$6,B$4<=C$6),(B6*B8),IF(B4>C6,(B6*B8)," "))) -> 10411.5216 | C10: =IF(AND(B$4>B$6,B$4<=C$6),(B4-B6)*C8,IF(B$4>C$6,((C6-B6)*C8),0)) -> 3126.5232 | D10: =B4*D8 -> 2023.2 | E10: =+B10+C10 -> 13538.0448 | F10: =E10+D10 -> 15561.2448 | M10: 2 | N10: =X10 -> Renseignez la case "revenus" qui permettra, à revenu égal, de compararer les cotisations et prestations à la C.A.V.O.M et au Régime Universel tel que proposé | Q10: Entrez vos revenus nets servant d'assiette aux cotisations : en renseignant la case ci-contre, | V10: 72000 | X10: =X9&" "&X3&" "&Y9 -> Renseignez la case "revenus" qui permettra, à revenu égal, de compararer les cotisations et prestations à la C.A.V.O.M et au Régime Universel tel que proposé
B13: Pension obtenue pour | C13: de cotisation | D13: =E28 -> 42 ans et un trimestre | E13: =B13&" "&D13&" "&C13 -> Pension obtenue pour 42 ans et un trimestre de cotisation
C14: tranche 2 : de zéro jusqu’à | D14: € (5 PASS) | E14: tranche 2 : de zéro jusqu’à 202 620 € (5 PASS) | F14: Cotisation maxi T1 | M14: Données générales
B15: PLAFOND | C15: 5 Plafonds | D15: 3,5 PLAFONDS | E15: REVENU
B16: =B6 -> 41136 | C16: =B16*5 -> 205680 | D16: =+B16*3.5 -> 143976 | E16: =+V10 -> 72000 | F16: =B16*E18 -> 3385.4928 | M16: Durée de carrière exigée pour bénéficier d'une pension à taux plein, exprimée en années (en années pleines et trimestres) en fonction de votre date de naissance. | O16: =+E28 -> 42 ans et un trimestre | Q16: =X16 -> Plafond de votre retaite de base actuelle: 5 Plafonds de la sécurité sociale ( PASS) soit 41136 €uros multiplié par 5 : | V16: =O18*5 -> 205680 | X16: =Y16&" "&B6&" "&AA16&" "&Z16 -> Plafond de votre retaite de base actuelle: 5 Plafonds de la sécurité sociale ( PASS) soit 41136 €uros multiplié par 5 : | Y16: Plafond de votre retaite de base actuelle: 5 Plafonds de la sécurité sociale ( PASS) soit | Z16: multiplié par 5 : | AA16: €uros | BK16: 132780
B17: COTISATIONS RÉGIME DE BASE | F17: POINTS | H17: PLAFOND | Q17: =D22 -> Cotisation tranche 1 jusqu’à 1 PASS | S17: =E18 -> 8,23 % | T17: =E22 -> Cotisation tranche 2 : de zéro jusqu’à 5 PASS | V17: =+E19 -> 0.0187 | Y17: Plafond de cotisation au régime Universel tel que proposé 3 Plafonds de la sécurité sociale ( | BJ17: 1000 | BK17: 1000 | CV17: P.A.S.S. = | CX17: Valeur du plafond de la Sécurité Sociale en revenu annuel
B18: COTISATION TRANCHE 1 | C18: =IF(E16<=B16,E16*E18,IF(E16>B16,F16," ")) -> 3385.4928 | D18: tranche 1 : jusqu’à 41 136 € (1 PASS) (3) | E18: 8,23 % | F18: =C16/H19 -> 8227.2 | G18: 525 points pour 40 524 € de revenus | H18: 525 | M18: Valeur de 1 plafond de la Sécurité Sociale | O18: 41136 | Q18: Valeur de 3 plafonds de la Sécurité Sociale (plafond du second niveau de cotisation au système universel) | V18: =O18*3 -> 123408 | BJ18: 450000 | BK18: =+BK16/BK17 -> 132.78
B19: COTISATION TRANCHE 2 | C19: =IF(E16<=C16,E16*E19,IF(E16>C16,C16*E19," ")) -> 1346.4 | D19: =C14&" "&C16&" "&D14 -> tranche 2 : de zéro jusqu’à 205680 € (5 PASS) | E19: 0.0187 | F19: =B16/H18 -> 78.35428571 | G19: + 1 point par tranche de revenu de 8 104,80 € = 25 points maximum | H19: 25 | BK19: =+BK18*1000 -> 132780 | CV19: Plafond de la retraite de base de la CNAVPL = 5 P.A.S.S.soit : | CY19: 40524 | CZ19: x
B20: TOTAL cotisation BASE | C20: =SUM(C18:C19) -> 4731.8928 | D20: PENSION POUR carrière complete | E20: =+E21*42.75 -> 13024.44297 | F20: POINTS Première tranche | G20: POINTS seconde tranche | H20: Nombre total de points acquis dans l'année: | BJ20: 13 | BK20: =+BJ20*1000 -> 13000
B21: Valeur de service du point | C21: 0.5708 | D21: Calcul de la pension pour une année | E21: =C21*H21 -> 304.6653326 | F21: =IF(E16<=B16,E16/F19,IF(E16>B16,H18," ")) -> 525 | G21: =IF(E16<=C16,E16/F18,IF(E16>C16,H19," ")) -> 8.751458576 | H21: =+F21+G21 -> 533.7514586 | BK21: =+BJ21*1000 -> 0
B22: =P22 -> 0 | D22: Cotisation tranche 1 jusqu’à 1 PASS | E22: Cotisation tranche 2 : de zéro jusqu’à 5 PASS | M22: =+X22 -> Données concernant la C.A.V.O.M | X22: =Y22&" "&X3 -> Données concernant la C.A.V.O.M | Y22: Données concernant la | BJ22: 30 | BK22: 30000 | CP22: =#REF!*#REF! -> 
D23: tranche 1 : jusqu’à 41 136 € (1 PASS) (3) | AP23: La pension du régime de retraite complémentaire est calculée ainsi :
M24: Retraite de Base (Cotisation)
CP25: =IF(CJ6<=#REF!,"-",IF(CJ6>#REF!,(#REF!*#REF!)," ")) -> 
B26: TRIMESTRES | C26: Durée de cotisations tous régimes éxigée | D26: =D28&" "&B26&" "&E26&" "&E28 -> 169 TRIMESTRES soit : 42 ans et un trimestre | E26: soit : | M26: =X26&" "&Y26 -> Cotisation Tranche 1 du Premier €uro de revenu jusqu'à 1 PASS : 8,23% soit | V26: =+C18 -> 3385.4928 | X26: Cotisation Tranche 1 | Y26: du Premier €uro de revenu jusqu'à 1 PASS : 8,23% soit
B27: =+D27 -> Durée de cotisations tous régimes éxigée 169 TRIMESTRES soit : 42 ans et un trimestre | D27: =C26&" "&H31&" "&B26&" "&E26&" "&C32 -> Durée de cotisations tous régimes éxigée 169 TRIMESTRES soit : 42 ans et un trimestre | AP27: cotisation au régime prévoyance
B28: Durée de cotisations tous régimes éxigée : | D28: =IF(H31>0,H31,IF(H31=0,B27," ")) -> 169 | E28: =IF(D28=160,D32,IF(D28=161,D33,IF(D28=162,D34,IF(D28=163,D35,IF(D28=164,D36,IF(D28=165,D37,IF(D28=166,D38,IF(D28=167,D40,IF(D28=168,D42,IF(D28=169,D43,IF(D28=170,D44,IF(D28=171,D45,IF(D28=172,D46," "))))))))))))) -> 42 ans et un trimestre | F28: =+D28/4 -> 42.25 | M28: =IF(V10<=V16,X28,IF(V10>V16,Y28," ")) -> Cotisation tranche 2 : 1,87%, depuis le premier €uros jusqu' au revenu net ( 72000 euros) | V28: =+C19 -> 1346.4 | X28: =Z28&" "&V10&" "&AA28 -> Cotisation tranche 2 : 1,87%, depuis le premier €uros jusqu' au revenu net ( 72000 euros) | Y28: Cotisation Tranche 2 à 1,87%, du premier €uros jusqu' au revenu net dans la limite de 5 pass : | Z28: Cotisation tranche 2 : 1,87%, depuis le premier €uros jusqu' au revenu net ( | AA28: euros) | BS28: Données concernant le projet de Régime Universel
A29: 1948 | B29: CALCULS SUR LA DUREE DE COTISATION | BB29: Vous cotisez dans l’une des 4 classes correspondant à votre revenu professionnel de l’année N-1, ou vous pouvez opter pour la classe immédiatement supérieure et ainsi être mieux couvert. | BS29: Taux de cotisation plafonnée entre 0 et 1 plafond ( 40.524€)
A30: 1949 | B30: 11 | M30: Cotisation à la retraite de base : | U30: =V26+V28 -> 4731.8928 | BB30: CLASSES | BC30: REVENUS PROFESSIONNELS NETS NON SALARIES 2018 | BD30: MONTANT DE LA COTISATION 2019 | BS30: Taux de cotisation déplafonnée
A31: 1950 | B31: 7 | D31: 42 ans | F31: Par défaut 168 Trimestres | H31: =IF(B30=1,BI99,IF(B30=2,BI100,IF(B30=3,BI101,IF(B30=4,BI102,IF(B30=5,BI103,IF(B30=6,BI104,IF(B30=7,BI105,IF(B30=8,BI106,IF(B30=9,BI107,IF(B30=10,BI108,IF(B30=11,BI109,IF(B30=12,BI110,IF(B30=13,BI111,IF(B30=14,BI112,IF(B30=15,BI99," "))))))))))))))) -> 169 | BB31: 1 | BC31: jusqu’à : 16 190 € | BD31: 288 | BS31: Taux de cotisation plafonnée (entre 1 et 3 plafonds 121.572 €)
A32: 1951 | B32: =IF(B30=1,F31,IF(B30=2,F32,IF(B30=3,F33,IF(B30=4,F34,IF(B30=5,F35,IF(B30=6,F36,IF(B30=7,F37,IF(B30=8,F38,IF(B30=9,F40,IF(B30=10,F42,IF(B30=11,F43,IF(B30=12,F44,IF(B30=13,F45,IF(B30=14,F46,IF(B30=15,F47," "))))))))))))))) -> Année de naissance : 1964 - 1965 ou 1966 | C32: =IF(B30=1,D31,IF(B30=2,D32,IF(B30=3,D33,IF(B30=4,D34,IF(B30=5,D35,IF(B30=6,D36,IF(B30=7,D37,IF(B30=8,D38,IF(B30=9,D40,IF(B30=10,D42,IF(B30=11,D43,IF(B30=12,D44,IF(B30=13,D45,IF(B30=14,D46,IF(B30=15,D47," "))))))))))))))) -> 42 ans et un trimestre | D32: 40 ans | E32: 1948 ou avant : 160 trimestres (40 ans) | F32: Année de naissance: 1948 ou avant | H32: 160 trimestres (40 ans) | M32: Retraite Complémentaire (*) | X32: Zone de calcul retraite complémentaire | Z32: =IF(AND(Y35>0,Y35<=16190),AH41,IF(AND(Y35>=16191,Y35<=32350),AH42,IF(AND(Y35>=32351,Y35<=44790),AH43,IF(AND(Y35>44790,Y35<=64560),AH44,IF(AND(Y35>64560,Y35<=79040),AH45,IF(AND(Y35>79040,Y35<=94850),AH46,IF(AND(Y35>94850,Y35<=132780),AH47,IF(Y35>132780,AH48," ")))))))) -> E | AA32: =+Z32 -> E | AB32: =+AA32 -> E | AC32: A | AD32: E | AE32: A | AF32: G | BB32: 2 | BC32: jusqu’à : 44 790 € | BD32: 396 | BQ32: €uros ). | BS32: Valeur annoncée du point
A33: 1952 | D33: 40 ans et un trimestre | E33: 1949 : 161 trimestres (40 ans et un trimestre) | F33: Année de naissance : 1949 | H33: 161 trimestres (40 ans et un trimestre) | X33: Le revenu net génère une cotisation de | Y33: de la grille de la | Z33: CLASSE | AA33: COTISATION | AB33: Points | AC33: B | AD33: F | AE33: B | AF33: H | AI33: O,5708 | AL33: Nombre de points acquis à la Cavec x Valeur annuelle du point du régime de base, fixée à 0,5708 € au 1er janvier 2020 = montant annuel de la retraite de base | BB33: 3 | BC33: jusqu’à : 79 040 € | BD33: 612
A34: 1953-1954 | D34: 40 ans et deux trimestres | E34: 1950 : 162 trimestres (40 ans et deux trimestres) | F34: Année de naissance : 1950 | H34: 162 trimestres (40 ans et deux trimestres) | M34: =X33 -> Le revenu net génère une cotisation de | V34: =AK2 -> 9000 | X34: =X33&" "&Z34&" "&Y33&" "&X3&" "&Y34 -> Le revenu net génère une cotisation de E de la grille de la C.A.V.O.M soit : | Y34: soit : | Z34: =IF(Z32=AC32,Z32,IF(Z32=AC33,Z32,IF(Z32=AC34,Z32,IF(Z32=AC35,Z32,IF(Z32=AD32,Z32,IF(Z32=AD33,Z32,IF(Z32=AD34,Z32,IF(Z32=AD35,Z32," ")))))))) -> E | AA34: =IF(AA32=AC32,AJ41,IF(AA32=AC33,AJ42,IF(AA32=AC34,AJ43,IF(AA32=AC35,AJ44,IF(AA32=AD32,AJ45,IF(AA32=AD33,AJ46,IF(AA32=AD34,AJ47,IF(AA32=AD35,AJ48," ")))))))) -> 9558 | AB34: =IF(AB32=AE32,AK41,IF(AB32=AE33,AK42,IF(AB32=AE34,AK43,IF(AB32=AE35,AK44,IF(AB32=AF34,AK45,IF(AB32=AF35,AK46,IF(AB32=AF32,AK47,IF(AB32=AF33,AK48," ")))))))) -> 708 | AC34: C | AD34: G | AE34: C | AF34: E | AI34: 1.159 | BB34: 4 | BC34: au-delà de : 79 040 € | BD34: 828 | CS34: Cotisation retraite complémentaire | CY34: =AA34 -> 9558
A35: 1955-1956-1957 | D35: 40 ans et trois trimestres | E35: 1951 : 163 trimestres (40 ans et trois trimestres) | F35: Année de naissance : 1951 | H35: 163 trimestres (40 ans et trois trimestres) | X35: REVENU | Y35: =V10 -> 72000 | AC35: D | AD35: H | AE35: D | AF35: F | BB35: Vous pouvez opter uniquement pour la classe immédiatement supérieure à celle qui correspond à votre tranche de revenus professionnels. | CQ35: COTIS RU | CS35: COTIS TOTALE
A36: 1958 1959-1960 | D36: 41 ans | E36: 1952 : 164 trimestres (41 ans) | F36: Année de naissance : 1952 | H36: 164 trimestres (41 ans) | M36: =X36 -> Cotisation totale annuelle à la C.A.V.O.M (base et complémentaire) : | U36: =+V34+U30 -> 13731.8928 | X36: =Y36&" "&X3&" "&Z36 -> Cotisation totale annuelle à la C.A.V.O.M (base et complémentaire) : | Y36: Cotisation totale annuelle à la | Z36: (base et complémentaire) : | CQ36: =+#REF! ->  | CS36: =U36 -> 13731.8928 | CT36: = | CU36: =CQ36-CS36 -> 
A37: 1961-1962-1963 | D37: 41 ans et un trimestre | E37: 1953-1954 : 165 trimestres (41 ans et un trimestre) | F37: Année de naissance : 1953 ou 1954 | H37: 165 trimestres (41 ans et un trimestre) | BB37: La cotisation est obligatoirement due jusqu’au 31 décembre de l’année du 70e anniversaire. Si vous êtes nouvel affilié, vous pouvez cotiser dans la classe de votre choix lors de votre première et deuxième année civile d’activité. À défaut, la cotisation est appelée en classe 1. | CQ37: PRESTATION RU | CS37: PRESTATION
A38: 1964-1965-1966 | D38: 41 ans et deux trimestres | E38: 1955-1956-1957 : 166 trimestres (41 ans et deux trimestres) | F38: Année de naissance : 1955 - 1956 ou 1957 | H38: 166 trimestres (41 ans et deux trimestres) | M38: =X38 -> Prestations pour 42 ans et un trimestre de cotisations | X38: =Y38&" "&C32&" "&Z38 -> Prestations pour 42 ans et un trimestre de cotisations | Y38: Prestations pour | Z38: de cotisations | AU38: EQUATIONS SUR LE MONTANT DE LA COTISATION | CQ38: =+CA95 -> 0 | CS38: =+CO63 -> 0 | CT38: = | CU38: =+CS38-CQ38 -> 0
A39: 1967-1968-1969 | X39: Valeur du point CAVEC | Y39: 1.176
A40: 1970-1971-1972 | D40: 41 ans et trois trimestres | E40: 1958 1956-1960 : 167 trimestres (41 ans et trois trimestres) | F40: Année de naissance : 1958 - 1959 ou 1960 | H40: 167 trimestres (41 ans et trois trimestres) | M40: Prestations à la retraite de base | Q40: Prestations à la retraite complémentaire | AH40: CLASSES | AI40: REVENUS PROFESSIONNELS NETS NON SALARIES 2018 | AJ40: MONTANT DE LA COTISATION 2019 | AK40: POINTS ATTRIBUES (valeur du point : 1,159 € en 2019) | AL40: COTISATION FACULTATIVE DE CONJOINT | AM40: CLASSES | AN40: REVENUS PROFESSIONNELS NETS NON SALARIES 2019 | AO40: MONTANT DE LA COTISATION 2020 | AP40: POINTS ATTRIBUES (valeur du point : 1,176 € en 2020) | AQ40: COTISATION FACULTATIVE DE CONJOINT | AU40: =AX40&" "&Y3&" "&AF44 -> Augmentation de la cotisation annuelle au préjudice du cotisant Officier ministériel : | AX40: Augmentation de la cotisation annuelle au préjudice du cotisant
A41: A partir de 1973 | M41: Nombre de points acquis chaque année : | O41: =+H21 -> 533.7514586 | Q41: Nombre de points acquis chaque année : | V41: =AK3 -> 192.5957629 | Y41: 1er Janvier 2020 | AC41: EQUATIONS SUR LE MONTANT DE LA PENSION | AH41: A | AI41: De 0 € à 16190€ | AJ41: 648 | AK41: 48 | AL41: 192 | AM41: A | AN41: De 0 € à 16190€ | AO41: 648 | AP41: 48 | AQ41: 194 | AU41: =AX41&" "&Y3&" "&AF44 -> Diminution de la cotisation au bénéfice du cotisant Officier ministériel : | AW41: Pas d'augmentation ou de diminution de cotisation. | AX41: Diminution de la cotisation au bénéfice du cotisant
A42: Par défaut 168 Trimestres | D42: 42 ans | E42: 1961-1962-1963 : 168 trimestres (42 ans) | F42: Année de naissance : 1961 - 1962 ou 1963 | H42: 168 trimestres (42 ans) | M42: Nombre de points acquis durant la carrière : | O42: =+O41*F28 -> 22550.99912 | Q42: Nombre de points acquis durant la carrière : | V42: =+V41*F28 -> 8137.170982 | X42: =+Y42&" "&Y41 -> Valeur du point depuis le 1er Janvier 2020 | Y42: Valeur du point depuis le | AC42: =AD42&" "&Y3&" "&AF44 -> gain de pension pour l' Officier ministériel : | AD42: gain de pension pour l' | AH42: B | AI42: De 16191€ à 32350€ | AJ42: 2430 | AK42: 180 | AL42: 719 | AM42: B | AN42: De 16191€ à 32350€ | AO42: 2430 | AP42: 180 | AQ42: 729 | AU42: =IF(AU43>0,AU40,IF(AU43<0,AU41,IF(AU43=0,AW41," "))) -> Augmentation de la cotisation annuelle au préjudice du cotisant Officier ministériel :
D43: 42 ans et un trimestre | E43: 1964-1965-1966 : 169 trimestres (42 ans et un trimestre) | F43: Année de naissance : 1964 - 1965 ou 1966 | H43: 169 trimestres (42 ans et un trimestre) | M43: =X42 -> Valeur du point depuis le 1er Janvier 2020 | O43: =+C21 -> 0.5708 | Q43: Valeur du point depuis le 1er Janvier 2019 | V43: =+AK4 -> 2.86 | AC43: =IF(AC44<0,AD43,IF(AC44>0,AC42," ")) ->  | AD43: =AD44&" "&Y3&" "&AF44 -> Perte annuelle de pension au préjudice de l' Officier ministériel : | AH43: C | AI43: De 32351€ à 44790€ | AJ43: 3824 | AK43: 284 | AL43: 1134 | AM43: C | AN43: De 32351€ à 44790€ | AO43: 3834 | AP43: 284 | AQ43: 1150 | AU43: =F10-U36 -> 1829.352 | AV43: =F10 -> 15561.2448 | AW43: =U36 -> 13731.8928
D44: 42 ans et deux trimestres | E44: 1967-1968-1969 : 170 trimestres (42 ans et deux trimestres) | F44: Année de naissance : 1967 - 1968 ou 1969 | H44: 170 trimestres (42 ans et deux trimestres) | M44: =E13 -> Pension obtenue pour 42 ans et un trimestre de cotisation | O44: =+O42*O43 -> 12872.1103 | Q44: =M44 -> Pension obtenue pour 42 ans et un trimestre de cotisation | V44: =+V42*V43 -> 23272.30901 | AC44: =CA95-CO63 -> 0 | AD44: Perte annuelle de pension au préjudice de l' | AF44: : | AH44: D | AI44: De 44791€ à 64560€ | AJ44: 5994 | AK44: 444 | AL44: 1773 | AM44: D | AN44: De 44791€ à 64560€ | AO44: 5994 | AP44: 444 | AQ44: 1798 | AU44: COTISATION CAVEC | AV44: COTISATION RU | AW44: PRESTATION CAVEC | AX44: PRESTATION RU
D45: 42 ans et trois trimestres | E45: 1970-1971-1972 : 171 trimestres (42 ans et trois trimestres) | F45: Année de naissance : 1970 - 1971 ou 1972 | H45: 171 trimestres (42 ans et trois trimestres) | AH45: E | AI45: De 64561€ à 79040€ | AJ45: 9558 | AK45: 708 | AL45: 2827 | AM45: E | AN45: De 64561€ à 79040€ | AO45: 9558 | AP45: 708 | AQ45: 2867 | AU45: =+U36 -> 13731.8928 | AV45: =F10 -> 15561.2448 | AW45: =CO63 -> 0 | AX45: =+CA95 -> 0
B46: =B32 -> Année de naissance : 1964 - 1965 ou 1966 | D46: 43 ans | E46: A partir de 1973 : 172 trimestres (43 ans). | F46: Année de naissance : à partir de 1973 | H46: 172 trimestres (43 ans). | M46: =X46 -> Pension totale obenue (base + complémentaire) à la C.A.V.O.M pour 42 ans et un trimestre de cotisations : | V46: =+V44+O44 -> 36144.41931 | X46: =Y46&" "&X3&" "&Z46&" "&E28&" "&AA46 -> Pension totale obenue (base + complémentaire) à la C.A.V.O.M pour 42 ans et un trimestre de cotisations : | Y46: Pension totale obenue (base + complémentaire) à la | Z46: pour | AA46: de cotisations : | AH46: F | AI46: De 79041€ à 94850€ | AJ46: 14580 | AK46: 1080 | AL46: 4312 | AM46: F | AN46: De 79041€ à 94850€ | AO46: 14580 | AP46: 1080 | AQ46: 4374 | AU46: Taux de cotisation global | AV46: =AU46&" "&X3 -> Taux de cotisation global C.A.V.O.M | AW46: =AU45/B4 -> 0.1907207333 | AX46: Taux de cotisation global au régime universel
D47: 42 ans | F47: Par défaut 168 Trimestres | AH47: G | AI47: De 94851 € à 132780€ | AJ47: 16200 | AK47: 1200 | AL47: 4792 | AM47: G | AN47: De 94851 € à 132780€ | AO47: 16200 | AP47: 1200 | AQ47: 4860 | AU47: =BT64-#REF! ->  | AV47: =IF(AU47<0%,AU48,IF(AU47>0%,AV48," ")) ->  | AX47: =AV45/B4 -> 0.2161284
M48: Résultats dans le cadre du projet de Régime Universel pour le même revenu | AH48: H | AI48: au-delà de : 132780€ | AJ48: 20250 | AK48: 1500 | AL48: 5990 | AM48: H | AN48: au-delà de : 132780€ | AO48: 20250 | AP48: 1500 | AQ48: 6075 | AU48: diminution du taux de cotisation de : | AV48: augmentation du taux de cotisation au Régime Universel de :
M49: cotisation plafonnée sur 1 P.A.S.S. | R49: =+V10 -> 72000 | S49: X | T49: =B8 -> 0.2531 | U49: = | V49: =B10 -> 10411.5216 | AM49: Vous pouvez opter pour la classe immédiatement supérieure à celle qui correspond à votre tranche de revenus libéraux professionnels et ainsi obtenir plus de points. Cette option est reconduite tacitement chaque année. Sur demande, l’affilié peut y renoncer avant le 28 février de chaque année relative à la prise d’effet.
M50: =X50 -> cotisation plafonnée ENTRE 2 ET 3 P.A.S.S.au taux de 10,13% : | R50: =F4 -> 82272 | S50: =IF(B4<=B6," ",IF(B4>B6,"X"," ")) -> X | T50: =IF(B4<=B6," ",IF(B4>B6,"10,13%"," ")) -> 10,13% | U50: =IF(B4<=B6," ",IF(B4>B6,"="," ")) -> = | V50: =IF(V10<=O18,0,IF(V10>O18,C10,0)) -> 3126.5232 | X50: =IF(B4<=B6,X51,IF(B4>B6,AH63," ")) -> cotisation plafonnée ENTRE 2 ET 3 P.A.S.S.au taux de 10,13% : | AI50: 132780 | AJ50: =+AI50/O18 -> 3.227829638
M51: Cotisation totale plafonnée créatrice de droits | R51: =V49 -> 10411.5216 | S51: + | T51: =+V50 -> 3126.5232 | U51: = | V51: =R51+T51 -> 13538.0448 | X51: Pas de cotisation au second plafond (revenu net inférieur au 1er plafond) | AU51: Pour un euro cotisé
M52: Cotisation déplafonnée non créatrice de droits | R52: =V10 -> 72000 | S52: x | T52: =D8 -> 0.0281 | U52: = | V52: =D10 -> 2023.2 | AU52: =AU53&" "&X3 -> Pension obtenue pour un €uro cotisé à la C.A.V.O.M | AV52: =CO63/U36 -> 0
M53: Cotisation totale annuelle : | U53: =V51+V52 -> 15561.2448 | AU53: Pension obtenue pour un €uro cotisé à la
A54: 1 | B54: 2 | C54: 3 | D54: 4 | E54: 5 | F54: 6 | G54: 7 | H54: 8 | I54: 9 | AU54: Pension obtenue pour un €uro cotisé au régime universel proposé | AV54: =CA95/#REF! -> 
M55: POINTS ACQUIS chaque année : | R55: =+V51 -> 13538.0448 | S55: : | T55: 10 | U55: = | V55: =+R55/T55 -> 1353.80448
M56: POINTS ACQUIS durant la carrière : | R56: =+V55 -> 1353.80448 | S56: x | T56: =F28 -> 42.25 | U56: = | V56: =+R56*T56 -> 57198.23928 | AU56: POUR 1 euro cotisé, la pension au Régime Universel sera inférieure par rapport à celle servie par la | AV56: =IF(AV52>AV54,AU57,IF(AV52<AV54,AU58," ")) ->  | AW56: =IF(AV56=AU57,(AV52-AV54)/AV52,IF(AU58=AV56,AW57," ")) -> 
AU57: =+AU56&" "&X3&" "&AV58 -> POUR 1 euro cotisé, la pension au Régime Universel sera inférieure par rapport à celle servie par la C.A.V.O.M de : | AW57: =IF(AV54>AV52,(AV54-AV52)/AV54," ") -> 
M58: Pension annuelle globale telle que prévue au régime universel : | R58: =+V56 -> 57198.23928 | S58: x | T58: 0.55 | U58: = | V58: =+R58*T58 -> 31459.0316 | AJ58: . | AU58: POUR 1 euro cotisé, la pension obtenue au régime Universel, serait supérieure à celle obtenue à la | AV58: de : | AW58: =AU58&" "&X3&" "&AV58 -> POUR 1 euro cotisé, la pension obtenue au régime Universel, serait supérieure à celle obtenue à la C.A.V.O.M de :
M60: =X61 -> Comparaisons Régime C.A.V.O.M et Régime Universel pour un même revenu de | V60: =+V10 -> 72000 | X60: Comparaisons Régime | Y60: et Régime Universel pour un même revenu de
X61: =X60&" "&X3&" "&Y60 -> Comparaisons Régime C.A.V.O.M et Régime Universel pour un même revenu de
M62: =+D27 -> Durée de cotisations tous régimes éxigée 169 TRIMESTRES soit : 42 ans et un trimestre | V62: =+V21 -> 0
M63: =+X3 -> C.A.V.O.M | Q63: Régime Universel | AH63: cotisation plafonnée ENTRE 2 ET 3 P.A.S.S.au taux de 10,13% : | AI63: =(C6-B6)*C8 -> 8334.1536 | AJ63: =+C10 -> 3126.5232
M64: COTISATION GLOBALE (base et complémentaire) | O64: =+U36 -> 13731.8928 | Q64: Cotisation au régime Universel | V64: =F10 -> 15561.2448
M65: Taux de cotisation global | O65: =+O64/B4 -> 0.1907207333 | Q65: Taux de cotisation global | V65: =+F8 -> 0.2161284 | AL65: multiplié par 3) soit :
M66: Pension annuelle totale | O66: =+V46 -> 36144.41931 | Q66: Pension annuelle (**) | V66: =+V58 -> 31459.0316 | BO66: =AV47 -> 
M67: Pension obtenue pour un €uro cotisé | O67: =O66/O64 -> 2.632151287 | Q67: Pension obtenue pour un €uro cotisé | V67: =V66/V64 -> 2.021626933 | BM67: =AU56 -> POUR 1 euro cotisé, la pension au Régime Universel sera inférieure par rapport à celle servie par la | BR67: Depuis le 1er janvier 2019, la valeur du point est de :
B68: ZONE DE CALCUL COMPARATIFS | C68: =+CS67 -> 0 | D68: =+V46 -> 36144.41931 | M68: Taux de remplacement | O68: =O66/V10 -> 0.5020058237 | Q68: Taux de remplacement | V68: =V66/V10 -> 0.4369309945 | BR68: Pension obtenue après 42 années de cotisation : | HBI68: =O67-V67 -> 0.6105243539 | HBJ68: =HBI68/O67 -> 0.2319488081
B69: =IF(C69<0,E69,IF(C69>0,D69," ")) -> Perte annuelle de pension au préjudice de l' Officier ministériel | C69: =V66-O66 -> -4685.387706 | D69: =+G69&" "&Y3 -> gain de pension pour l' Officier ministériel | E69: =F69&" "&Y3 -> Perte annuelle de pension au préjudice de l' Officier ministériel | F69: Perte annuelle de pension au préjudice de l' | G69: gain de pension pour l' | M69: =B69 -> Perte annuelle de pension au préjudice de l' Officier ministériel | V69: =ABS(C69) -> 4685.387706
B70: =F70&" "&Y3 -> Augmentation de la cotisation annuelle au préjudice de l' Officier ministériel | C70: =E70&" "&Y3 -> Diminution de la cotisation au bénéfice de l' Officier ministériel | D70: =V64-O64 -> 1829.352 | E70: Diminution de la cotisation au bénéfice de l' | F70: Augmentation de la cotisation annuelle au préjudice de l' | M70: =IF(V64>O64,B70,IF(V64<O64,C70," ")) -> Augmentation de la cotisation annuelle au préjudice de l' Officier ministériel | V70: =ABS(D70) -> 1829.352
B71: =IF(C71<0%,D71,IF(C71>0%,E71," ")) -> Augmentation du taux de cotisation au Régime Universel de | C71: =V65-O65 -> 0.02540766667 | D71: Diminution du taux de cotisation de | E71: Augmentation du taux de cotisation au Régime Universel de | M71: =B71 -> Augmentation du taux de cotisation au Régime Universel de | V71: =ABS(C71) -> 0.02540766667 | BM71: Part des cotisations à la retraite de base C.N.B.F. réservée à la solidarité Nationale :
B72: =IF(C72<0,E72,IF(C72>0,D72," ")) -> Par tranche de 1.000 euros cotisés au Régime Universel, la perte de pension sera de : | C72: =(O67-V67)*1000 -> 610.5243539 | D72: Par tranche de 1.000 euros cotisés au Régime Universel, la perte de pension sera de : | E72: Par tranche de 1.000 euros cotisés au Régime Universel, le gain de pension sera de : | G72: ZONE DE CALCUL COMPARATIFS | N72: =+B72 -> Par tranche de 1.000 euros cotisés au Régime Universel, la perte de pension sera de : | V72: =C72 -> 610.5243539 | HBI72: =HBI68*1000 -> 610.5243539
B73: Pour 1 euro cotisé la pension au Régime Universel est inférieure de | C73: =IF(V73>0%,B73,IF(V73<0%,D73," ")) -> Pour 1 euro cotisé la pension au Régime Universel est inférieure de | D73: Pour 1 euro cotisé, la pension obtenue serait supérieur de : | M73: =B73 -> Pour 1 euro cotisé la pension au Régime Universel est inférieure de | V73: =(O67-V67)/O67 -> 0.2319488081 | HBJ73: =HBI72*20.386 -> 12446.14948
M74: Le taux de remplacement par rapport au revenu d'activité baissera de : | V74: =O68-V68 -> 0.06507482925
B77: compensation démographique cnavpl | C77: 902608841 | M77: (*) ( Le système universel tend à supprimer les régimes complémtentaires (Agirc-ARCO pour les salariés, caisses complémentaires des Professions Libérales…) Ainsi la comparaison entre les situations actuelles et les situations envisagées par la réforme doivent nécessairement prendre en compte les régimes actuels de base et complémentaire.
B78: nombre de cotisants | C78: 931254 | M78: (**) Le projet de régime universel prévoit une pension minimum pour les carrières complètes de 85% du SMIC, ainsi toutes les pension inférieures à ce montant sernt réajustées automtiquement à la condition que la carrière ait été complète.
B79: PAR COTISANT | C79: =C77/C78 -> 969.2402298 | M79: Part des cotisations de base réservée à la solidarité Nationale, payée par la CNAVPL (moyenne annuelle par cotisant) : | V79: =C79 -> 969.2402298
B91: SECTEUR | C91: 2 | D91: COMPLEMENTAIRE ET ASV
B92: RÉGIME COMPLÉMENTAIRE | D92: Cotisation maximale : 13 900 €. | F92: =(B16*3.5)*F93 -> 14109.648 | G92: 14183 | H92: PLAFOND | I92: =14183*10 -> 141830
B93: Revenus nets d'activité indépendante 2017 dans la limite de 141 834 € (3,5 PASS) | F93: 0.098 | G93: Pour 2019 : 1 point par tranche de revenu de 14 183 €, 10 points maximum | H93: 1 POINT | I93: 10 POINTS MAXI
B94: cotisation : | C94: =+IF(E16<=I92,E16*F93,IF(E16>I92,F92," ")) -> 7056 | D94: Points obtenus | F94: =IF(E16<=I92,E16/G92,IF(E16>I92,10," ")) -> 5.076500035 | G94: Calcul de la pension pour une année | H94: 69 | I94: =H94*F94 -> 350.2785024
B95: RÉGIME ASV | C95: COTISATIONS | F95: Calcul des points ASV ( forfaitaire 27) | H95: 27
C96: Part forfaitaire : | D96: Part ajustement : | E96: cotisation maxi ASV | F96: Pour 2019 : 27 points + 1 point par tranche de 7 828,70 € de revenus, 9 points maximum | H96: 9
B97: SECTEUR 1 | C97: 1691 | D97: 0.012 | E97: =C16*D97 -> 2468.16 | F97: Part de revenu pour acquerir des points supplémentaires | H97: 7828.7 | BI97: 8
B98: - secteur 2 | C98: 5073 | D98: 0.036 | E98: =C16*D98 -> 7404.48 | F98: cotis maxi ASV Sect 1 | G98: PLAFOND revenus supplémentaires | H98: =H97*9 -> 70458.3 | AX98: =BH82 -> 0 | BI98: 10
B99: =C96 -> Part forfaitaire : | C99: =IF(C91=1,C97,IF(C91=2,C98," ")) -> 5073 | D99: POINTS forfaitaires | E99: =H95 -> 27 | F99: =C97+E97 -> 4159.16 | G99: Valeur du point ASV | H99: 11.31 | BI99: 168
B100: Part ajustement : | C100: =IF(AND(E16<=C16,C91=1),E16*D97,IF(AND(E16<=C16,C91=2),E16*D98,IF(AND(E16>C16,C91=2),E98,IF(AND(E16>C16,C91=1),E97," ")))) -> 2592 | D100: POINTS ajustement | E100: =IF(E16<=H98,E16/H97,IF(E16>H98,9," ")) -> 9 | F100: cotis maxi ASV Sect 2 | G100: Calcul de la pension pour 1 Année | H100: =+H99*E101 -> 407.16 | AW100: Synthèse des comparaisons entre régime C.A.V.E.C et le Régime Universel pour un même revenu de | BI100: 160
B101: Cotisation totale | C101: =+C99+C100 -> 7665 | D101: POINTS total acquis | E101: =SUM(E99:E100) -> 36 | F101: =C98+E98 -> 12477.48 | BI101: 161
BI102: 162
BI103: 163
BI104: 164
BI105: 165
BI106: 166
BI107: 167
BI108: 168
BI109: 169
BI110: 170
BI111: 171
BI112: 172
AV130: 20
AU137: zone de calcul, ne pas modifier
AU138: PENSION u regime universel calcul | AV138: =BT55*BT34 -> 0 | AW138: 12240
AV139: =IF(AV138<=AW138,AW138,IF(AV138>AW138,AV138," ")) -> 12240
AU145: =+#REF! -> 
AU146: =#REF! -> 
AU180: données de controle
AV182: A | AW182: B | AX182: C | AY182: D
AU183: 123000 | AV183: 41674 | AW183: 83348 | AX183: 125022 | AY183: 166696
AU184: =+AU183 -> 123000 | AV184: de 1 € à 41.674 € | AW184: 41.675 à 83.348 € | AX184: 83.349 à 125.022 € | AY184: 125.023 à 166.696 €
AU185: C1 | AV185: 0.038 | AW185: 0.076 | AX185: 0.087 | AY185: 0.098
AU186: C2 | AV186: 0.045 | AW186: 0.089 | AX186: 0.1035 | AY186: 0.118
AU187: C3 | AV187: 0.0525 | AW187: 0.1025 | AX187: 0.12 | AY187: 0.138
AU188: C4 | AV188: 0.06 | AW188: 0.116 | AX188: 0.137 | AY188: 0.158
AU191: · Né à partir de 1973 : 172 trimestres
AU192: · Né à partir de 1970 : 171 trimestres
AU193: · Né à partir de 1967 : 170 trimestres
AU194: · Né à partir de 1964 : 169 trimestres
AU195: · Né à partir de 1961 : 168 trimestres
AU196: · Né à partir de 1958 : 167 trimestres
AU197: · Né en 1956 : 166 trimestres
AU198: · Né en 1955 : 166 trimestres
AU199: · Né en 1954 : 165 trimestres
AU200: · Né en 1953 : 165 trimestres
AU201: · Né en 1952 : 164 trimestres
AU202: · Né en 1951 : 163 trimestres
AU203: · Né en 1950 : 162 trimestres
AU204: · Né en 1949 : 161 trimestres
